fUSD/lending_fUSD_20240905
["ID","MTS","AMOUNT","RATE_DAILY","PERIOD"]
[337201659,1725497499052,-941.98,0.00014891,2]
[337201660,1725497499061,-941.98,0.00014891,2]
[337201661,1725497499070,-5884.3,0.00014891,2]
[337201662,1725497499079,-1133.18,0.00014891,2]
[337201663,1725497499089,-1133.18,0.00014891,2]
[337201664,1725497499098,-730.51,0.00014891,2]
[337201665,1725497499108,-730.51,0.00014891,2]
[337201666,1725497499117,-2866.35,0.00014891,2]
[337201667,1725497499126,-2866.35,0.00014891,2]
[337201668,1725497499135,-530.75,0.00014891,2]
[337201669,1725497499144,-530.75,0.00014891,2]
[337201670,1725497499153,-654.17,0.00014891,2]
[337201671,1725497499162,-654.17,0.00014891,2]
[337201672,1725497499171,-654.17,0.00014891,2]
[337201673,1725497499180,-847.62,0.00014891,2]
[337201674,1725497499190,-847.62,0.00014891,2]
[337201675,1725497499199,-693.65,0.00014891,2]
[337201676,1725497499208,-693.65,0.00014891,2]
[337201677,1725497499217,-1611.08,0.00014891,2]
[337201678,1725497499226,-1611.08,0.00014891,2]
[337201679,1725497499235,-1611.08,0.00014891,2]
[337201680,1725497499244,-8263.51,0.00014891,2]
[337201681,1725497499254,-3338.91734083,0.00014891,2]
[337201682,1725497499850,-151.0,0.00014888,2]
[337201683,1725497499860,-151.0,0.00014889,2]
[337201684,1725497499870,-3261.9999998,0.00014891,2]
[337201685,1725497501572,500.0,0.00011164,2]
[337201686,1725497501667,500.0,0.00011164,2]
[337201687,1725497543073,900.0,8.22e-05,2]
[337201688,1725497544667,900.0,9.59e-05,2]
[337201689,1725497545030,600.0,0.00012,2]
[337201690,1725497546274,900.0,0.0001096,2]
[337201691,1725497626480,886.91,0.00011934,2]
[337201692,1725497704891,2200.0,8.22e-05,2]
[337201693,1725497706460,2200.0,9.59e-05,2]
[337201694,1725497708045,2200.0,0.0001096,2]
[337201695,1725497710698,2400.0,8.22e-05,2]
[337201696,1725497712286,2400.0,9.59e-05,2]
[337201697,1725497713871,2400.0,0.0001096,2]
[337201698,1725497790726,217.69,0.00010959,2]
[337201699,1725497986243,550.0,0.00011,2]
[337201700,1725498145333,600.0,0.00011651,2]
[337201701,1725498145354,242.56,0.00011651,2]
[337201704,1725498360968,157.44,0.00011,2]
[337201705,1725498360994,45.56,0.00011,2]
[337201706,1725498540011,-300.0,0.00012299,2]
[337201707,1725498540039,-300.0,0.00012299,2]
[337201708,1725498540070,-1519.19140582,0.000123,2]
[337201709,1725498540099,-795.0,0.000123,2]
[337201710,1725498540129,-795.0,0.000123,2]
[337201711,1725498540160,-795.0,0.000123,2]
[337201712,1725498540190,-795.0,0.000123,2]
[337201713,1725498540221,-184.40822133,0.000123,2]
[337201714,1725498540255,-610.59177867,0.000123,2]
[337201715,1725498540283,-795.0,0.000123,2]
[337201716,1725498540312,-795.0,0.000123,2]
[337201717,1725498540340,-806.98231882,0.000123,2]
[337201718,1725498540368,-795.0,0.00012319,2]
[337201719,1725498540401,-900.0,0.0001233,2]
[337201720,1725498540431,-781.02552966,0.0001233,2]
[337201721,1725498540464,-1092.24599122,0.0001233,2]
[337201722,1725498566394,150.0,0.00012001,2]
[337201723,1725498566418,200.0,0.00012001,2]
[337201724,1725498599258,600.0,8.22e-05,2]
[337201725,1725498600895,600.0,9.59e-05,2]
[337201726,1725498602493,600.0,0.0001096,2]
[337201732,1725498631664,-326.72847912,0.0001233,2]
[337201733,1725498631674,-94.08752088,0.0001233,2]
[337201734,1725498631725,-2305.91247912,0.0001233,2]
[337201735,1725498631734,-600.0,0.0001233,2]
[337201736,1725498631743,-795.0,0.00012968,2]
[337201737,1725498631752,-600.0,0.00013,2]
[337201738,1725498631761,-300.0,0.00013455,2]
[337201739,1725498631770,-8275.63452082,0.00013456,2]
[337201740,1725498631841,-2132.62621162,0.00013456,2]
[337201744,1725498637680,-955.27057878,0.00013456,2]
[337201745,1725498637741,-364.16553151,0.00013456,2]
[337201746,1725498637752,-10340.0,0.00013456,2]
[337201747,1725498637859,-261.78315727,0.00013456,2]
[337201748,1725498637869,-150.0,0.00013463,2]
[337201749,1725498637878,-250.0,0.00013468,2]
[337201750,1725498637887,-250.0,0.00013512,2]
[337201751,1725498637897,-250.0,0.00013528,2]
[337201752,1725498637906,-199.6,0.00013528,2]
[337201753,1725498637915,-499.99,0.00013528,2]
[337201754,1725498637925,-136.09586273,0.00013549,2]
[337201755,1725498637936,-503.90413727,0.00013549,2]
[337201756,1725498637946,-150.5,0.00013566,2]
[337201757,1725498637955,-795.0,0.0001365,2]
[337201758,1725498637963,-795.0,0.0001365,2]
[337201759,1725498637973,-150.0,0.00013699,2]
[337201760,1725498637983,-600.0,0.000137,2]
[337201769,1725498638227,-764.31,0.00013783,2]
[337201771,1725498638237,-360.0,0.00013826,2]
[337201773,1725498638246,-842.56,0.00013915,2]
[337201775,1725498638256,-200.0,0.00013983,2]
[337201777,1725498638265,-353.942709,0.00014049,2]
[337201779,1725498638275,-421.99,0.00014055,2]
[337201781,1725498638284,-421.99,0.00014055,2]
[337201783,1725498638294,-421.99,0.00014055,2]
[337201785,1725498638303,-421.99,0.00014055,2]
[337201787,1725498638312,-421.54,0.00014055,2]
[337201789,1725498638322,-353.942709,0.00014225,2]
[337201791,1725498638331,-795.0,0.00014333,2]
[337201793,1725498638341,-353.942709,0.000144,2]
[337201795,1725498638350,-764.31,0.00014472,2]
[337201797,1725498638359,-353.942709,0.00014576,2]
[337201799,1725498638368,-150.0,0.00014589,2]
[337201801,1725498638378,-150.0,0.00014589,2]
[337201803,1725498638387,-150.0,0.00014589,2]
[337201805,1725498638396,-150.0,0.00014589,2]
[337201807,1725498638405,-150.0,0.00014589,2]
[337201808,1725498638414,-373.53,0.00014589,2]
[337201810,1725498638424,-1902.729,0.000146,2]
[337201812,1725498638433,-150.0,0.000146,2]
[337201814,1725498638442,-543.116,0.000146,2]
[337201816,1725498638451,-2504.194,0.000146,2]
[337201818,1725498638461,-1481.53553,0.0001474,2]
[337201820,1725498638471,-420.0,0.00014749,2]
[337201822,1725498638479,-353.942709,0.00014752,2]
[337201824,1725498638488,-339.24801443,0.00014781,2]
[337201826,1725498638497,-540.37,0.00014789,2]
[337201828,1725498638506,-527.11,0.00014789,2]
[337201830,1725498638515,-527.11,0.00014789,2]
[337201832,1725498638526,-519.62496283,0.00014789,2]
[337201834,1725498638535,-500.0,0.00014789,2]
[337201836,1725498638544,-500.0,0.00014789,2]
[337201838,1725498638553,-500.0,0.00014789,2]
[337201840,1725498638562,-153.99859079,0.00014789,2]
[337201842,1725498638571,-500.0,0.00014789,2]
[337201844,1725498638580,-500.0,0.00014789,2]
[337201846,1725498638589,-500.0,0.00014789,2]
[337201848,1725498638598,-500.0,0.00014789,2]
[337201850,1725498638608,-500.0,0.00014789,2]
[337201852,1725498638617,-500.0,0.00014789,2]
[337201854,1725498638626,-500.0,0.00014789,2]
[337201856,1725498638635,-500.0,0.00014789,2]
[337201858,1725498638645,-500.0,0.00014789,2]
[337201860,1725498638655,-697.75,0.00014789,2]
[337201862,1725498638664,-697.75,0.00014789,2]
[337201864,1725498638673,-412.10971967,0.00014789,2]
[337201866,1725498638685,-491.77976376,0.00014789,2]
[337201876,1725498639715,-192.26051657,0.00014789,2]
[337201877,1725498639725,-1096.15,0.00014789,2]
[337201878,1725498639734,-900.67,0.00014789,2]
[337201879,1725498639744,-900.67,0.00014789,2]
[337201880,1725498639753,-673.84,0.00014789,2]
[337201881,1725498639763,-673.84,0.00014789,2]
[337201882,1725498639773,-615.87,0.00014789,2]
[337201883,1725498639782,-320.29267147,0.00014789,2]
[337201884,1725498640003,-295.57732853,0.00014789,2]
[337201885,1725498640013,-500.0,0.00014789,2]
[337201886,1725498640023,-500.0,0.00014789,2]
[337201887,1725498640033,-500.0,0.00014789,2]
[337201888,1725498640042,-500.0,0.00014789,2]
[337201889,1725498640051,-505.0917379,0.00014789,2]
[337201890,1725498640060,-501.94950643,0.00014789,2]
[337201891,1725498640070,-500.0,0.00014789,2]
[337201892,1725498640079,-500.0,0.00014789,2]
[337201893,1725498640090,-625.40350299,0.00014789,2]
[337201894,1725498640100,-504.59990539,0.00014789,2]
[337201895,1725498640110,-243.8164775,0.00014789,2]
[337201896,1725498640119,-500.0,0.00014789,2]
[337201897,1725498640129,-500.0,0.00014789,2]
[337201898,1725498640139,-500.0,0.00014789,2]
[337201899,1725498640148,-136.45611647,0.00014789,2]
[337202157,1725498645972,-360.9516,0.00014789,2]
[337202159,1725498694012,400.0,0.00012001,2]
[337202160,1725498694911,217.01123443,0.00027,120]
[337202161,1725498701841,150.0,8.972e-05,2]
[337202162,1725498701862,150.0,8.972e-05,2]
[337202163,1725498701881,150.0,8.972e-05,2]
[337202164,1725498701901,150.0,8.972e-05,2]
[337202165,1725498701922,150.0,8.972e-05,2]
[337202166,1725498701944,550.0,8.972e-05,2]
[337202167,1725498703011,1400.0,8.972e-05,2]
[337202168,1725498703407,1300.0,0.00010342,2]
[337202169,1725498704468,1400.0,0.00010342,2]
[337202170,1725498704974,1300.0,0.00011712,2]
[337202171,1725498706066,1400.0,0.00011712,2]
[337202172,1725498711162,350.0,0.00027,120]
[337202173,1725498715588,400.0,8.972e-05,2]
[337202174,1725498715611,100.0,8.972e-05,2]
[337202175,1725498717156,300.0,0.00011712,2]
[337202176,1725498717178,200.0,0.00011712,2]
[337202177,1725498739866,200.0,0.00011945,2]
[337202178,1725498739887,400.0,0.00011945,2]
[337202179,1725498739908,227.52,0.00011945,2]
[337202182,1725498806367,400.0,0.00012001,2]
[337202183,1725498821546,321.41,0.00010959,2]
[337202184,1725498826663,400.0,0.00027,120]
[337202185,1725499297870,152.86,0.00010959,2]
[337202186,1725499367183,150.0,0.0001174,2]
[337202187,1725499367205,150.0,0.0001174,2]
[337202188,1725499367228,150.0,0.0001174,2]
[337202189,1725499367249,282.89948978,0.0001174,2]
[337202190,1725499367271,53.24051022,0.0001174,2]
[337202194,1725499739980,3905.0,0.00027,120]
[337202195,1725499746641,-183.00821368,0.00012099,2]
[337202196,1725499746669,-549.0,0.00012198,2]
[337202197,1725499746697,-2478.0059,0.00012199,2]
[337202198,1725499746724,-795.0,0.00012299,2]
[337202199,1725499746751,-794.66687882,0.00012299,2]
[337202200,1725499746779,-545.76536872,0.00012319,2]
[337202201,1725499755615,1300.0,8.972e-05,2]
[337202202,1725499755737,1100.0,8.972e-05,2]
[337202203,1725499756007,500.0,8.972e-05,2]
[337202204,1725499757237,1300.0,0.00010342,2]
[337202205,1725499757332,1100.0,0.00010342,2]
[337202206,1725499757580,500.0,0.00011712,2]
[337202207,1725499758950,150.0,0.00011712,2]
[337202208,1725499758973,150.0,0.00011712,2]
[337202209,1725499758995,800.0,0.00011712,2]
[337202210,1725499759280,1300.0,0.00011712,2]
[337202211,1725499798685,550.0,0.00011,2]
[337202230,1725499831952,-249.23463128,0.00012319,2]
[337202232,1725499831962,-171.00436811,0.000129,2]
[337202234,1725499831971,-795.0,0.00012967,2]
[337202237,1725499831981,-300.28555093,0.00013,2]
[337202240,1725499831991,-600.0,0.00013,2]
[337202243,1725499832000,-1300.0,0.00013082,2]
[337202245,1725499832010,-1100.0,0.00013082,2]
[337202247,1725499832019,-488.0,0.00013513,2]
[337202249,1725499832029,-150.5,0.00013596,2]
[337202251,1725499832039,-250.0,0.00013604,2]
[337202253,1725499832048,-2562.91,0.0001361,2]
[337202255,1725499832058,-250.0,0.00013612,2]
[337202257,1725499832068,-795.0,0.0001365,2]
[337202259,1725499832078,-499.99,0.0001365,2]
[337202261,1725499832088,-250.0,0.00013656,2]
[337202263,1725499832099,-172.57,0.00013667,2]
[337202265,1725499832109,-512.0,0.00013684,2]
[337202266,1725499832121,-458.58,0.00013699,2]
[337202267,1725499832131,-150.02,0.00013711,2]
[337202268,1725499832140,-407.77,0.000138,2]
[337202269,1725499832150,-786.14,0.00014004,2]
[337202270,1725499832160,-795.0,0.00014332,2]
[337202271,1725499832170,-458.58,0.00014384,2]
[337202272,1725499832179,-412.21991848,0.0001439,2]
[337202273,1725499832189,-500.0,0.00014452,2]
[337202274,1725499832199,-1100.0,0.00014452,2]
[337202275,1725499832208,-1300.0,0.00014452,2]
[337202276,1725499832218,-3000.0,0.000146,2]
[337202277,1725499832228,-150.0,0.00014636,2]
[337202278,1725499832238,-150.0,0.00014642,2]
[337202279,1725499832247,-150.0,0.00014642,2]
[337202280,1725499832256,-150.0,0.00014648,2]
[337202281,1725499832266,-150.0,0.0001466,2]
[337202282,1725499832276,-1500.0,0.00014721,2]
[337202283,1725499832285,-1500.0,0.0001473,2]
[337202284,1725499832295,-300.70201465,0.00014739,2]
[337202285,1725499832305,-1500.0,0.00014767,2]
[337202286,1725499832314,-441.7752,0.00014767,2]
[337202287,1725499832323,-579.434,0.00014771,2]
[337202288,1725499832333,-305.32321296,0.00014771,2]
[337202289,1725499832347,-304.52063342,0.00014771,2]
[337202290,1725499832357,-1500.0,0.00014772,2]
[337202291,1725499832367,-3149.31533307,0.00014773,2]
[337202292,1725499832376,-150.0,0.00014777,2]
[337202293,1725499832387,-4245.7141,0.00014779,2]
[337202294,1725499832397,-7500.0,0.0001478,2]
[337202295,1725499832407,-305.32321291,0.00014785,2]
[337202296,1725499832417,-2.59228353,0.00014789,2]
[337202297,1725499832429,-500.0,0.00014789,2]
[337202298,1725499832438,-500.0,0.00014789,2]
[337202299,1725499832447,-968.43,0.00014789,2]
[337202300,1725499832457,-968.43,0.00014789,2]
[337202301,1725499832467,-500.0,0.00014789,2]
[337202302,1725499832476,-500.0,0.00014789,2]
[337202303,1725499832485,-500.0,0.00014789,2]
[337202304,1725499832495,-482.96366525,0.00014789,2]
[337202305,1725499832504,-385.47205069,0.00014789,2]
[337202306,1725499832514,-342.48761112,0.00014789,2]
[337202308,1725499832524,-500.0,0.00014789,2]
[337202309,1725499832533,-500.0,0.00014789,2]
[337202311,1725499832542,-500.0,0.00014789,2]
[337202313,1725499832552,-319.35154066,0.00014789,2]
[337202315,1725499832561,-802.44,0.00014789,2]
[337202316,1725499832571,-802.44,0.00014789,2]
[337202317,1725499832580,-1234.61294,0.00014789,2]
[337202318,1725499832591,-2324.21109593,0.00014789,2]
[337202319,1725499832602,-156.41721627,0.00014792,2]
[337202320,1725499832611,-305.32321291,0.000148,2]
[337202321,1725499832622,-2000.0,0.000148,2]
[337202322,1725499832631,-305.32321291,0.00014814,2]
[337202323,1725499832641,-150.0,0.00014817,2]
[337202324,1725499832650,-305.32321291,0.00014828,2]
[337202325,1725499832661,-150.0,0.00014833,2]
[337202326,1725499832670,-305.32321291,0.00014843,2]
[337202327,1725499832680,-150.0,0.00014846,2]
[337202328,1725499832690,-810.0,0.00014846,2]
[337202329,1725499832699,-638.293,0.00014846,2]
[337202330,1725499832709,-931.0,0.00014846,2]
[337202331,1725499832719,-552.0,0.00014846,2]
[337202332,1725499832728,-1899.0,0.00014846,2]
[337202333,1725499832737,-259.643,0.00014846,2]
[337202334,1725499832747,-248.0,0.00014846,2]
[337202335,1725499832756,-3341.0,0.00014846,2]
[337202336,1725499832765,-805.0,0.00014846,2]
[337202337,1725499832775,-1134.0,0.00014846,2]
[337202338,1725499832784,-1549.608,0.00014846,2]
[337202339,1725499832793,-1262.686,0.00014846,2]
[337202340,1725499832803,-968.43,0.00014856,2]
[337202341,1725499832812,-305.32321291,0.00014857,2]
[337202342,1725499832821,-261.77345595,0.00014866,2]
[337202343,1725499832831,-527.11,0.00014866,2]
[337202344,1725499832840,-500.0,0.00014866,2]
[337202345,1725499832850,-572.14772141,0.00014866,2]
[337202346,1725499832859,-500.0,0.00014866,2]
[337202347,1725499832871,-500.0,0.00014866,2]
[337202348,1725499832880,-500.0,0.00014866,2]
[337202349,1725499832890,-697.75,0.00014866,2]
[337202350,1725499832899,-1096.15,0.00014866,2]
[337202351,1725499832909,-900.67,0.00014866,2]
[337202352,1725499832918,-673.84,0.00014866,2]
[337202353,1725499832928,-615.87,0.00014866,2]
[337202354,1725499832937,-500.0,0.00014866,2]
[337202355,1725499832946,-500.0,0.00014866,2]
[337202356,1725499832955,-500.0,0.00014866,2]
[337202357,1725499832964,-552.04546536,0.00014866,2]
[337202358,1725499832974,-500.0,0.00014866,2]
[337202359,1725499832983,-463.18701262,0.00014866,2]
[337202360,1725499832993,-500.0,0.00014866,2]
[337202361,1725499833002,-500.0,0.00014866,2]
[337202362,1725499833012,-802.44,0.00014866,2]
[337202363,1725499833021,-230.0,0.0001487,2]
[337202364,1725499833031,-41003.7996649,0.0001487,2]
[337202365,1725499833040,-152.79,0.0001487,2]
[337202366,1725499833049,-756.23,0.0001487,2]
[337202367,1725499833058,-84.43536507,0.0001487,2]
[337202368,1725499833072,-1590.88590064,0.0001487,2]
[337202369,1725499833081,-1295.55166855,0.0001487,2]
[337202370,1725499833093,-31507.48806345,0.0001487,2]
[337202371,1725499833102,-25108.03532402,0.00014871,2]
[337202372,1725499833115,-24096.52427388,0.00014871,2]
[337202373,1725499833124,-32803.039732,0.00014871,2]
[337202374,1725499833133,-2863.96451272,0.00014871,2]
[337202375,1725499833143,-305.32321291,0.00014871,2]
[337202376,1725499833152,-500.0,0.00014873,2]
[337202377,1725499833162,-500.0,0.00014873,2]
[337202378,1725499833171,-500.0,0.00014873,2]
[337202379,1725499833181,-500.0,0.00014873,2]
[337202380,1725499833190,-500.0,0.00014873,2]
[337202381,1725499833200,-361.56552801,0.00014874,2]
[337202382,1725499833210,-8200.75993299,0.00014875,2]
[337202383,1725499833219,-968.43,0.00014876,2]
[337202384,1725499833229,-24602.279799,0.00014876,2]
[337202385,1725499833238,-2863.96451272,0.00014876,2]
[337202386,1725499833249,-41003.7996649,0.00014877,2]
[337202387,1725499833258,-4295.94676908,0.00014877,2]
[337202388,1725499833268,-24602.279799,0.00014878,2]
[337202389,1725499833277,-4295.94676908,0.00014878,2]
[337202390,1725499833287,-542.27,0.00014879,2]
[337202391,1725499833296,-500.0,0.00014879,2]
[337202392,1725499833306,-9931.35,0.00014879,2]
[337202393,1725499833315,-500.0,0.00014879,2]
[337202394,1725499833325,-500.0,0.00014879,2]
[337202395,1725499833334,-160.309653,0.00014879,2]
[337202396,1725499833344,-160.309653,0.00014879,2]
[337202397,1725499833356,-160.309653,0.00014879,2]
[337202398,1725499833367,-500.0,0.00014879,2]
[337202399,1725499833376,-500.0,0.00014879,2]
[337202400,1725499833385,-166.99618773,0.00014879,2]
[337202401,1725499833395,-4837.029733,0.00014879,2]
[337202402,1725499833404,-541.372048,0.00014879,2]
[337202403,1725499833414,-500.0,0.00014879,2]
[337202404,1725499833424,-516.764228,0.00014879,2]
[337202405,1725499833434,-516.764228,0.00014879,2]
[337202406,1725499833444,-260.457054,0.00014879,2]
[337202407,1725499833454,-160.72341895,0.00014879,2]
[337202408,1725499833465,-756.23,0.00014879,2]
[337202409,1725499833474,-756.23,0.00014879,2]
[337202410,1725499833483,-178.955583,0.00014879,2]
[337202411,1725499833493,-150.80148575,0.00014879,2]
[337202412,1725499833502,-177.38434203,0.00014879,2]
[337202413,1725499833512,-11455.8580509,0.00014879,2]
[337202414,1725499833521,-2000.0,0.0001488,2]
[337202415,1725499833531,-500.0,0.0001488,2]
[337202416,1725499833541,-500.0,0.0001488,2]
[337202417,1725499833550,-705.71,0.0001488,2]
[337202418,1725499833559,-645.46,0.0001488,2]
[337202419,1725499833568,-2593.36,0.0001488,2]
[337202420,1725499833578,-5343.63,0.0001488,2]
[337202421,1725499833588,-1300.35,0.0001488,2]
[337202422,1725499833598,-2892.13,0.0001488,2]
[337202423,1725499833608,-500.0,0.0001488,2]
[337202424,1725499833618,-500.0,0.0001488,2]
[337202425,1725499833627,-1544.76,0.0001488,2]
[337202426,1725499833636,-962.78,0.0001488,2]
[337202427,1725499833646,-1872.09,0.0001488,2]
[337202428,1725499833656,-500.0,0.0001488,2]
[337202429,1725499833666,-1714.32,0.0001488,2]
[337202430,1725499833675,-500.0,0.0001488,2]
[337202431,1725499833685,-500.0,0.0001488,2]
[337202432,1725499833694,-500.0,0.0001488,2]
[337202433,1725499833703,-500.0,0.0001488,2]
[337202434,1725499833713,-500.0,0.0001488,2]
[337202435,1725499833723,-500.0,0.0001488,2]
[337202436,1725499833732,-500.0,0.0001488,2]
[337202437,1725499833742,-500.0,0.0001488,2]
[337202438,1725499833751,-500.0,0.0001488,2]
[337202439,1725499833761,-500.0,0.0001488,2]
[337202440,1725499833771,-583.37,0.0001488,2]
[337202441,1725499833781,-500.0,0.0001488,2]
[337202442,1725499833791,-250.89536259,0.0001488,2]
[337202443,1725499833801,-500.0,0.0001488,2]
[337202444,1725499833811,-500.0,0.0001488,2]
[337202445,1725499833822,-500.0,0.0001488,2]
[337202446,1725499833833,-3102.77,0.0001488,2]
[337202447,1725499833843,-500.0,0.0001488,2]
[337202448,1725499833854,-500.80665603,0.0001488,2]
[337202449,1725499833865,-500.0,0.0001488,2]
[337202450,1725499833875,-500.0,0.0001488,2]
[337202451,1725499833885,-500.0,0.0001488,2]
[337202452,1725499833895,-514.00722375,0.0001488,2]
[337202453,1725499833906,-500.0,0.0001488,2]
[337202454,1725499833916,-838.18,0.0001488,2]
[337202455,1725499833925,-571.67258136,0.0001488,2]
[337202456,1725499833935,-150.0,0.0001488,2]
[337202457,1725499833944,-500.0,0.0001488,2]
[337202458,1725499833954,-500.0,0.0001488,2]
[337202459,1725499833963,-500.0,0.0001488,2]
[337202460,1725499833972,-851.81,0.0001488,2]
[337202461,1725499833982,-1287.92,0.0001488,2]
[337202462,1725499833992,-500.0,0.0001488,2]
[337202463,1725499834001,-500.0,0.0001488,2]
[337202464,1725499834010,-500.0,0.0001488,2]
[337202465,1725499834020,-500.0,0.0001488,2]
[337202466,1725499834029,-500.0,0.0001488,2]
[337202467,1725499834038,-500.0,0.0001488,2]
[337202468,1725499834048,-500.0,0.0001488,2]
[337202469,1725499834057,-500.0,0.0001488,2]
[337202470,1725499834067,-500.0,0.0001488,2]
[337202471,1725499834077,-500.0,0.0001488,2]
[337202472,1725499834087,-500.0,0.0001488,2]
[337202473,1725499834096,-1915.76,0.0001488,2]
[337202474,1725499834106,-500.0,0.0001488,2]
[337202475,1725499834117,-500.0,0.0001488,2]
[337202476,1725499834127,-1003.28,0.0001488,2]
[337202477,1725499834137,-500.0,0.0001488,2]
[337202478,1725499834147,-500.51945033,0.0001488,2]
[337202479,1725499834157,-2944.76,0.0001488,2]
[337202480,1725499834167,-500.0,0.0001488,2]
[337202481,1725499834176,-500.0,0.0001488,2]
[337202482,1725499834186,-500.0,0.0001488,2]
[337202483,1725499834196,-500.0,0.0001488,2]
[337202484,1725499834205,-500.0,0.0001488,2]
[337202485,1725499834215,-500.0,0.0001488,2]
[337202486,1725499834224,-500.0,0.0001488,2]
[337202487,1725499834234,-500.0,0.0001488,2]
[337202488,1725499834244,-1491.94,0.0001488,2]
[337202489,1725499834253,-500.0,0.0001488,2]
[337202490,1725499834263,-500.0,0.0001488,2]
[337202491,1725499834273,-311.59932921,0.0001488,2]
[337202492,1725499834283,-303.72640973,0.0001488,2]
[337202493,1725499834293,-500.0,0.0001488,2]
[337202494,1725499834303,-500.0,0.0001488,2]
[337202495,1725499834312,-500.0,0.0001488,2]
[337202496,1725499834323,-1400.06,0.0001488,2]
[337202497,1725499834332,-500.0,0.0001488,2]
[337202498,1725499834342,-300.70700914,0.0001488,2]
[337202499,1725499834355,-500.0,0.0001488,2]
[337202500,1725499834367,-623.19078129,0.0001488,2]
[337202501,1725499834386,-500.0,0.0001488,2]
[337202502,1725499834396,-499.99758475,0.0001488,2]
[337202503,1725499834405,-500.0,0.0001488,2]
[337202504,1725499834416,-500.0,0.0001488,2]
[337202505,1725499834427,-500.0,0.0001488,2]
[337202506,1725499834437,-500.0,0.0001488,2]
[337202507,1725499834447,-500.0,0.0001488,2]
[337202508,1725499834457,-500.0,0.0001488,2]
[337202509,1725499834467,-1095.43,0.0001488,2]
[337202510,1725499834477,-500.0,0.0001488,2]
[337202511,1725499834486,-1344.35,0.0001488,2]
[337202512,1725499834496,-879.59,0.0001488,2]
[337202513,1725499834505,-500.0,0.0001488,2]
[337202514,1725499834514,-500.0,0.0001488,2]
[337202515,1725499834525,-1331.6,0.0001488,2]
[337202516,1725499834536,-500.0,0.0001488,2]
[337202517,1725499834546,-500.0,0.0001488,2]
[337202518,1725499834557,-500.0,0.0001488,2]
[337202519,1725499834567,-500.0,0.0001488,2]
[337202520,1725499834576,-500.0,0.0001488,2]
[337202521,1725499834586,-760.89,0.0001488,2]
[337202522,1725499834595,-500.0,0.0001488,2]
[337202523,1725499834604,-500.0,0.0001488,2]
[337202524,1725499834616,-500.0,0.0001488,2]
[337202525,1725499834626,-500.0,0.0001488,2]
[337202526,1725499834636,-500.0,0.0001488,2]
[337202527,1725499834646,-500.0,0.0001488,2]
[337202528,1725499834656,-500.0,0.0001488,2]
[337202529,1725499834665,-505.65113368,0.0001488,2]
[337202530,1725499834674,-500.0,0.0001488,2]
[337202531,1725499834685,-500.0,0.0001488,2]
[337202532,1725499834694,-167.3897496,0.0001488,2]
[337202533,1725499834704,-2261.89,0.0001488,2]
[337202534,1725499834713,-543.44,0.0001488,2]
[337202535,1725499834723,-500.0,0.0001488,2]
[337202536,1725499834733,-500.0,0.0001488,2]
[337202537,1725499834743,-2557.95,0.0001488,2]